bitfinex/quotes_SOLUSD_20251223
["timestamp","ask_amount","ask_price","bid_price","bid_amount"]
[1766499101867,0.66,123.8,123.76,31.27976236]
[1766499102235,0.66,123.8,123.77,8.7794783]
[1766499102860,0.66,123.8,123.77,0.7]
[1766499103035,0.66,123.8,123.75,10.43767296]
[1766499103231,7.73984218,123.77,123.73,8.08173873]
[1766499103452,0.66,123.76,123.73,8.08173873]
[1766499103651,0.66,123.76,123.73,18.51941169]
[1766499103852,0.66,123.76,123.73,19.21941169]
[1766499104760,0.66,123.79,123.74,0.7]
[1766499104934,7.73984218,123.77,123.73,10.43767296]
[1766499105139,0.66,123.76,123.73,10.43767296]
[1766499105443,0.66,123.76,123.73,11.13767296]
[1766499105758,8.39984218,123.78,123.73,26.95926029]
[1766499105964,0.66,123.77,123.73,19.21941811]
[1766499106146,0.66,123.77,123.73,26.95926029]
[1766499106761,0.66,123.77,123.73,19.21941811]
[1766499106962,0.66,123.77,123.73,26.95926029]
[1766499107259,0.66,123.76,123.73,0.7]
[1766499107462,0.66,123.78,123.74,8.43984218]
[1766499107670,10.43767296,123.8,123.72,23.52262628]
[1766499107671,0.66,123.76,123.72,23.52262628]
[1766499107840,8.39984218,123.76,123.72,23.52262628]
[1766499108345,0.66,123.76,123.73,0.7]
[1766499110068,0.66,123.76,123.73,8.78202818]
[1766499110270,8.39984218,123.77,123.73,8.78202818]
[1766499110869,0.66,123.76,123.73,0.7]
[1766499111168,0.66,123.76,123.73,8.78205349]
[1766499111649,0.66,123.76,123.72,31.26256244]
[1766499112044,0.66,123.76,123.72,23.52272026]
[1766499112248,0.66,123.76,123.72,31.26256244]
[1766499112549,0.66,123.76,123.72,23.52272026]
[1766499112757,8.39984218,123.76,123.72,23.52272026]
[1766499113261,0.66,123.76,123.72,31.26256244]
[1766499113768,0.66,123.78,123.75,8.43984218]
[1766499113941,0.66,123.8,123.76,0.7]
[1766499114363,0.66,123.8,123.77,15.44]
[1766499114948,0.66,123.8,123.77,14.74]
[1766499116574,0.66,123.8,123.77,15.44]
[1766499116971,7.73984218,123.79,123.75,10.43767296]
[1766499117154,7.73984218,123.79,123.75,25.87767296]
[1766499117354,0.66,123.79,123.75,33.9583654]
[1766499117562,0.66,123.79,123.75,25.87767296]
[1766499117870,0.66,123.8,123.76,8.7801151]
[1766499118074,8.39984218,123.8,123.76,8.7801151]
[1766499118574,0.66,123.8,123.76,8.7801151]
[1766499118972,0.66,123.79,123.75,14.74]
[1766499119271,0.66,123.79,123.75,23.52061776]
[1766499119272,8.39984218,123.79,123.75,23.52061776]
[1766499119456,0.66,123.8,123.76,8.78010862]
[1766499119654,0.66,123.8,123.76,8.08010862]
[1766499119865,0.66,123.8,123.76,0.7]
[1766499120646,0.66,123.8,123.77,0.7]
[1766499121051,5.32723191,123.82,123.78,0.7]
[1766499121266,10.08428564,123.82,123.78,0.7]
[1766499121575,0.66,123.81,123.78,0.7]
[1766499122149,0.66,123.8,123.76,14.74]
[1766499122366,0.66,123.79,123.76,14.74]
[1766499122571,0.66,123.79,123.75,8.78024897]
[1766499122777,5.41705373,123.79,123.75,15.44]
[1766499122964,4.75705373,123.79,123.75,14.74]
[1766499123172,0.66,123.78,123.74,33.95886795]
[1766499123366,0.66,123.78,123.74,27.57824872]
[1766499123571,0.66,123.78,123.75,0.7]
[1766499130372,0.72,123.79,123.74,19.49705373]
[1766499130572,0.72,123.78,123.74,14.74]
[1766499130771,0.72,123.78,123.74,20.20705373]
[1766499131078,0.72,123.78,123.74,15.45]
[1766499131284,0.72,123.78,123.74,28.28835763]
[1766499131471,0.72,123.78,123.74,23.5313039]
[1766499131786,0.72,123.78,123.74,28.28835763]
[1766499132280,0.72,123.78,123.75,0.71]
[1766499133362,8.79898371,123.78,123.75,0.71]
[1766499133564,0.72,123.76,123.73,25.88767296]
[1766499133874,0.72,123.76,123.73,15.45]
[1766499135578,5.47705373,123.74,123.7,0.71]
[1766499135784,0.72,123.73,123.7,15.45]
[1766499136360,0.72,123.73,123.7,14.74]
[1766499136361,0.72,123.72,123.7,14.74]
[1766499136667,0.72,123.72,123.68,8.79514456]
[1766499136870,5.47705373,123.72,123.68,0.71]
[1766499137091,5.47705373,123.72,123.68,8.79518916]
[1766499137382,20.20038784,123.76,123.68,12.84224289]
[1766499137565,0.72,123.75,123.71,5.46705373]
[1766499137978,0.72,123.75,123.71,0.71]
[1766499138184,5.47705373,123.75,123.71,0.71]
[1766499140089,0.72,123.74,123.71,0.71]
[1766499140286,0.72,123.73,123.69,23.53445797]
[1766499140496,5.47705373,123.73,123.69,15.45]
[1766499140867,4.75705373,123.72,123.69,15.45]
[1766499141986,0.72,123.73,123.69,15.45]
[1766499142172,5.47705373,123.73,123.69,23.53467407]
[1766499142581,5.47705373,123.73,123.69,15.45]
[1766499142785,8.08102108,123.75,123.7,0.71]
[1766499143006,0.72,123.75,123.71,0.71]
[1766499143372,0.72,123.75,123.72,0.71]
[1766499143982,13.55825658,123.75,123.72,0.71]
[1766499144301,0.72,123.74,123.7,0.71]
[1766499144676,5.47705373,123.74,123.7,0.71]
[1766499145400,5.47705373,123.74,123.7,8.79391609]
[1766499146084,2.62480361,123.74,123.7,8.79391609]
[1766499146283,0.72,123.74,123.7,8.79391609]
[1766499146479,0.72,123.74,123.7,10.6987197]
[1766499146800,0.72,123.74,123.71,0.71]
[1766499148292,9.98579108,123.75,123.7,8.08391609]
[1766499148494,10.70631735,123.74,123.7,0.71]
[1766499149902,0.72,123.73,123.7,0.71]
[1766499153303,0.72,123.73,123.69,24.72946842]
[1766499153605,0.72,123.73,123.7,0.71]
[1766499155407,8.80227199,123.73,123.69,14.74]
[1766499155610,1.90480361,123.74,123.69,14.74]
[1766499155791,0.72,123.74,123.7,0.71]
[1766499158207,8.80150369,123.74,123.7,0.71]
[1766499158416,0.71,123.73,123.7,0.71]
[1766499158922,0.71,123.75,123.71,0.72]
[1766499159108,0.71,123.75,123.7,2.62480361]
[1766499159109,0.71,123.74,123.7,2.62480361]
[1766499159304,0.71,123.74,123.7,0.72]
[1766499160623,8.79147777,123.74,123.7,0.72]
[1766499160802,0.71,123.73,123.7,0.72]
[1766499161808,0.71,123.72,123.68,1.90480361]
[1766499162020,0.71,123.72,123.69,0.72]
[1766499163823,0.71,123.73,123.69,9.98932096]
[1766499164022,0.71,123.73,123.7,0.72]
[1766499164409,0.71,123.73,123.7,2.62480361]
[1766499164610,8.79147777,123.74,123.71,0.72]
[1766499165425,10.69591975,123.75,123.71,0.72]
[1766499165623,0.71,123.74,123.71,0.72]
[1766499166614,0.71,123.74,123.69,8.08445556]
[1766499166817,0.71,123.74,123.7,0.72]
[1766499167327,0.71,123.74,123.69,0.72]
[1766499167328,0.68,123.72,123.69,0.72]
[1766499167532,2.58480361,123.72,123.69,0.72]
[1766499167716,0.68,123.72,123.69,0.72]
[1766499167915,10.66643261,123.74,123.7,0.72]
[1766499168529,0.68,123.74,123.7,1.90480361]
[1766499168833,0.68,123.74,123.71,0.72]
[1766499169015,10.66629011,123.74,123.7,0.72]
[1766499169218,0.68,123.73,123.7,0.72]
[1766499169432,2.58480361,123.73,123.69,0.72]
[1766499169615,0.68,123.73,123.69,0.72]
[1766499169822,2.58480361,123.73,123.69,0.72]
[1766499170130,1.90480361,123.73,123.69,0.72]
[1766499170324,0.68,123.72,123.69,0.72]
[1766499171136,2.58480361,123.72,123.69,0.72]
[1766499171428,1.90480361,123.72,123.68,15.48]
[1766499171610,0.68,123.71,123.68,15.48]
[1766499173530,0.68,123.71,123.67,10.43767296]
[1766499173531,10.66827151,123.71,123.67,10.43767296]
[1766499173723,1.90480361,123.7,123.66,8.80639624]
[1766499173922,2.58480361,123.7,123.66,8.80639624]
[1766499174232,0.68,123.7,123.67,0.72]
[1766499175026,10.66788073,123.72,123.67,9.99057426]
[1766499175232,10.66788073,123.72,123.68,0.72]
[1766499176311,2.58480361,123.72,123.68,0.72]
[1766499177845,8.76285585,123.72,123.68,0.72]
[1766499178021,10.66765946,123.72,123.68,0.72]
[1766499178743,8.08285585,123.72,123.69,0.72]
[1766499179244,8.76285585,123.72,123.69,0.72]
[1766499180234,11.73972974,123.72,123.69,0.72]
[1766499180418,2.97687389,123.71,123.67,0.72]
[1766499180619,3.65687389,123.7,123.67,0.72]
[1766499180839,0.68,123.69,123.65,34.00469688]
[1766499181065,0.68,123.69,123.66,0.72]
[1766499181564,3.65687389,123.7,123.66,0.72]
[1766499181763,0.68,123.69,123.66,0.72]
[1766499182140,2.97687389,123.7,123.66,0.72]
[1766499182342,0.68,123.7,123.66,0.72]
[1766499182966,0.68,123.69,123.66,0.72]
[1766499184369,8.76476077,123.69,123.66,0.72]
[1766499184684,0.68,123.69,123.66,0.72]
[1766499185055,0.68,123.67,123.64,0.72]
[1766499187171,8.08541582,123.68,123.64,0.72]
[1766499187360,11.73228971,123.68,123.64,0.72]
[1766499187752,2.97687389,123.7,123.66,0.68]
[1766499187947,0.67,123.7,123.66,2.97687389]
[1766499188171,0.67,123.7,123.66,3.65687389]
[1766499188673,0.67,123.69,123.66,0.68]
[1766499190468,8.75491079,123.69,123.66,0.68]
[1766499190961,0.67,123.69,123.66,0.68]
[1766499191361,0.67,123.69,123.66,3.65687389]
[1766499191758,0.67,123.69,123.66,0.68]
[1766499191963,0.67,123.69,123.66,3.65687389]
[1766499192166,0.67,123.69,123.66,0.68]
[1766499193078,8.75485772,123.69,123.66,0.68]
[1766499193459,0.67,123.69,123.66,0.68]
[1766499193969,8.75494306,123.69,123.65,0.68]
[1766499194174,8.75494306,123.69,123.65,3.65687389]
[1766499194682,0.67,123.69,123.66,0.68]
[1766499194977,11.73051039,123.71,123.67,0.68]
[1766499195160,0.67,123.7,123.67,0.68]
[1766499195788,8.0836365,123.71,123.67,2.97687389]
[1766499195987,11.72992569,123.72,123.69,0.68]
[1766499196187,8.7530518,123.72,123.69,0.68]
[1766499196386,0.67,123.71,123.67,0.68]
[1766499196698,2.97687389,123.7,123.66,14.76]
[1766499196904,0.67,123.69,123.66,15.44]
[1766499198209,0.67,123.69,123.66,0.68]
[1766499198399,8.75475152,123.69,123.66,0.68]
[1766499198813,0.67,123.68,123.64,14.76]
[1766499198981,0.67,123.67,123.64,14.76]
[1766499199383,0.67,123.67,123.64,15.44]
[1766499200082,11.73303222,123.67,123.63,0.68]
[1766499200897,11.06303222,123.67,123.63,0.68]
[1766499201097,11.73303222,123.67,123.63,3.65687389]
[1766499203602,11.73303222,123.67,123.63,2.97687389]
[1766499203802,11.73303222,123.67,123.64,0.68]
[1766499204815,0.67,123.66,123.63,0.68]
[1766499206713,8.75675825,123.66,123.63,0.68]
[1766499207214,11.73363214,123.66,123.63,0.68]
[1766499208196,3.64687389,123.66,123.63,0.68]
[1766499208994,11.7335728,123.66,123.63,0.68]
[1766499209315,3.64687389,123.66,123.63,0.68]
[1766499211725,0.67,123.66,123.63,0.68]
[1766499211916,11.7332403,123.67,123.63,0.68]
[1766499212225,11.0632403,123.67,123.63,0.68]
[1766499212425,11.7332403,123.67,123.63,0.68]
[1766499212721,0.67,123.66,123.63,0.68]
[1766499216333,8.75677472,123.66,123.63,0.68]
[1766499216931,0.67,123.66,123.63,0.68]
[1766499220524,0.67,123.66,123.63,3.65687389]
[1766499220737,2.97687389,123.67,123.64,0.69]
[1766499221042,3.69687389,123.67,123.64,0.69]
[1766499221244,11.78304443,123.67,123.64,0.69]
[1766499221833,0.72,123.66,123.64,0.69]
[1766499222236,8.08617054,123.67,123.64,3.66687389]
[1766499222440,8.80617054,123.67,123.64,3.66687389]
[1766499222742,8.80502987,123.69,123.66,0.69]
[1766499223046,0.72,123.68,123.65,3.66687389]
[1766499223244,11.78190376,123.69,123.66,0.69]
[1766499223642,8.08502987,123.69,123.65,3.66687389]
[1766499223948,8.08563415,123.68,123.66,0.69]
[1766499224820,8.80489332,123.69,123.66,0.69]
[1766499227334,0.72,123.68,123.64,3.66687389]
[1766499227535,3.69687389,123.68,123.65,0.69]
[1766499227834,2.97687389,123.67,123.63,11.12767296]
[1766499228040,3.69687389,123.66,123.63,14.76]
[1766499228238,3.69687389,123.66,123.63,15.45]
[1766499228553,0.72,123.66,123.63,15.45]
[1766499229551,8.80680533,123.66,123.63,15.45]
[1766499230255,0.72,123.66,123.63,15.45]
[1766499231939,8.80669371,123.66,123.63,15.45]
[1766499232657,0.72,123.66,123.63,15.45]
[1766499235640,0.72,123.66,123.63,18.42687389]
[1766499236362,11.78421719,123.65,123.62,0.69]
[1766499236751,3.69687389,123.65,123.62,0.69]
[1766499236953,0.72,123.65,123.62,0.69]
[1766499237668,0.72,123.65,123.62,3.66687389]
[1766499238371,0.72,123.65,123.62,2.97687389]
[1766499238559,0.72,123.65,123.63,0.69]
[1766499239069,21.5008845,123.67,123.63,0.69]
[1766499239371,0.72,123.66,123.63,0.69]
[1766499241381,2.62689286,123.66,123.63,0.69]
[1766499243368,10.7137797,123.66,123.63,0.69]
[1766499245351,0.72,123.65,123.63,0.69]
[1766499245759,9.9937797,123.66,123.63,0.69]
[1766499245760,10.7137797,123.66,123.63,0.69]
[1766499245952,10.71320817,123.67,123.63,0.69]
[1766499246475,0.72,123.66,123.63,0.69]
[1766499248985,8.806771,123.66,123.63,0.69]
[1766499252699,2.61689286,123.65,123.62,0.69]
[1766499252875,0.71,123.63,123.61,14.76]
[1766499254471,8.79866413,123.63,123.61,14.76]
[1766499255707,8.08866413,123.63,123.6,1.90689286]
[1766499255985,10.70501671,123.64,123.61,0.69]
[1766499256804,0.71,123.63,123.6,0.69]
[1766499257979,8.79890438,123.63,123.6,0.69]
[1766499261592,8.79890438,123.63,123.59,14.96]
[1766499261593,0.71,123.62,123.59,14.96]
[1766499261898,0.71,123.62,123.59,15.65]
[1766499263780,8.79941686,123.62,123.59,15.65]
[1766499263984,0.71,123.61,123.59,14.96]
[1766499264183,0.71,123.61,123.59,0.2]
[1766499264893,1.90689286,123.61,123.59,0.2]
[1766499265202,0.71,123.6,123.57,0.69]
[1766499265394,0.71,123.6,123.57,1.90689286]
[1766499265606,0.71,123.6,123.57,2.59689286]
[1766499265999,8.80064304,123.6,123.57,2.59689286]
[1766499266601,0.71,123.6,123.57,0.69]
[1766499266811,0.71,123.6,123.57,2.59689286]
[1766499267699,0.71,123.6,123.57,0.69]
[1766499267892,0.71,123.6,123.57,2.59689286]
[1766499268206,0.71,123.6,123.57,0.69]
[1766499268386,0.71,123.6,123.57,2.59689286]
[1766499268589,9.99619879,123.62,123.59,0.69]
[1766499269095,10.70619879,123.62,123.59,0.69]
[1766499269295,9.99619879,123.62,123.59,0.69]
[1766499269607,0.71,123.61,123.59,0.69]
[1766499273123,0.67,123.6,123.57,0.65]
[1766499273503,1.90689286,123.61,123.58,0.65]
[1766499273704,2.57689286,123.61,123.58,0.65]
[1766499273908,2.57689286,123.61,123.57,0.65]
[1766499274219,2.57689286,123.61,123.58,0.65]
[1766499274430,10.66685432,123.61,123.58,0.65]
[1766499275232,0.67,123.61,123.58,0.65]
[1766499276403,8.76012255,123.61,123.58,0.65]
[1766499277530,0.67,123.61,123.58,0.65]
[1766499278528,0.69,123.62,123.59,0.67]
[1766499279727,8.77933012,123.62,123.59,0.67]
[1766499282828,0.69,123.61,123.58,0.67]
[1766499283123,0.69,123.6,123.57,0.67]
[1766499285206,0.69,123.61,123.58,0.67]
[1766499286816,0.69,123.61,123.57,1.90689286]
[1766499287023,8.78010091,123.61,123.58,0.67]
[1766499287229,0.69,123.61,123.58,0.67]
[1766499288310,8.77959484,123.62,123.59,0.67]
[1766499291530,0.69,123.62,123.59,0.67]
[1766499291711,8.77933587,123.62,123.59,0.67]
[1766499291907,8.08933587,123.62,123.59,0.67]
[1766499292110,0.69,123.61,123.59,0.67]
[1766499294634,0.69,123.6,123.57,0.67]
[1766499294817,0.69,123.59,123.56,0.85878308]
[1766499295018,2.59689286,123.59,123.56,0.85878308]
[1766499295221,10.68841829,123.59,123.56,0.85878308]
[1766499299417,8.78152543,123.59,123.56,0.85878308]
[1766499299622,10.68841829,123.59,123.56,0.85878308]
[1766499300355,28.31969923,123.59,123.56,1e-08]
[1766499300555,0.69,123.56,123.54,0.2]
[1766499300920,1.90689286,123.57,123.54,0.2]
[1766499300921,0.69,123.57,123.54,0.2]
[1766499301142,2.59689286,123.54,123.53,0.2]
[1766499301548,0.69,123.53,123.51,0.2]
[1766499301842,2.59689286,123.53,123.51,0.2]
[1766499302046,0.69,123.56,123.52,0.67]
[1766499302234,0.69,123.56,123.53,0.67]
[1766499303143,3.67599345,123.56,123.53,0.67]
[1766499303436,11.76942461,123.56,123.53,0.67]
[1766499305145,3.67599345,123.56,123.53,0.67]
[1766499308729,0.69,123.56,123.53,0.67]
[1766499309333,3.67599345,123.56,123.53,0.67]
[1766499311043,2.98599345,123.57,123.54,0.71]
[1766499311240,22.21574759,123.58,123.54,0.71]
[1766499312050,2.98599345,123.6,123.56,0.71]
[1766499312232,3.68599345,123.6,123.56,0.71]
[1766499312433,3.68599345,123.59,123.56,0.71]
[1766499313067,2.98599345,123.59,123.55,0.71]
[1766499313370,3.68599345,123.58,123.55,0.71]
[1766499314059,0.7,123.58,123.55,0.71]
[1766499314239,11.13767296,123.61,123.58,0.71]
[1766499314427,2.98599345,123.62,123.59,0.71]
[1766499314428,8.78930593,123.62,123.59,0.71]
[1766499314632,8.78930593,123.62,123.58,0.71]
[1766499314633,0.7,123.61,123.58,0.71]
[1766499317058,0.7,123.61,123.58,3.69599345]
[1766499318153,0.7,123.61,123.58,0.71]
[1766499321767,2.98599345,123.58,123.56,0.71]
[1766499322069,3.68599345,123.59,123.56,0.71]
[1766499322276,11.77599119,123.61,123.57,0.71]
[1766499322458,11.77599119,123.61,123.57,2.98599345]
[1766499322654,30.66028785,123.63,123.58,0.71]
[1766499322854,3.68599345,123.61,123.57,0.71]
[1766499323078,2.98599345,123.61,123.57,0.71]
[1766499323367,0.7,123.6,123.57,0.71]
[1766499323577,3.68599345,123.6,123.57,0.71]
[1766499324974,2.98599345,123.61,123.57,2.98599345]
[1766499325148,11.77529938,123.62,123.58,0.71]
[1766499325465,11.77529938,123.62,123.58,3.69599345]
[1766499325763,8.78930593,123.62,123.58,2.98599345]
[1766499325943,0.7,123.62,123.59,0.71]
[1766499326368,3.68599345,123.62,123.59,0.71]
[1766499326665,11.07555539,123.62,123.58,2.98599345]
[1766499326872,11.07555539,123.62,123.57,22.87247862]
[1766499326873,0.7,123.6,123.57,15.49]
[1766499327045,3.68599345,123.6,123.57,15.49]
[1766499327241,0.7,123.59,123.56,0.71]
[1766499327452,3.68599345,123.59,123.56,0.71]
[1766499328767,8.09083552,123.6,123.56,0.71]
[1766499328956,11.77682897,123.6,123.57,0.71]
[1766499329145,0.7,123.6,123.57,0.71]
[1766499330073,8.79061765,123.6,123.57,0.71]
[1766499330670,11.7766111,123.6,123.57,0.71]
[1766499330969,3.68599345,123.59,123.55,0.71]
[1766499331177,3.68599345,123.59,123.56,0.71]
[1766499331672,0.7,123.59,123.56,0.71]
[1766499331855,3.68599345,123.59,123.56,0.71]
[1766499332582,0.7,123.59,123.56,0.71]
[1766499332982,8.09061765,123.6,123.56,2.98599345]
[1766499333176,2.98599345,123.6,123.57,0.65]
[1766499333359,8.76021695,123.61,123.57,0.65]
[1766499333556,11.0762104,123.61,123.57,0.65]
[1766499333760,0.67,123.6,123.57,0.65]
[1766499333960,3.65599345,123.6,123.57,0.65]
[1766499334482,0.67,123.6,123.57,0.65]
[1766499335256,11.74720856,123.6,123.57,0.65]
[1766499335861,0.67,123.59,123.55,0.65]
[1766499336066,0.67,123.58,123.55,3.63599345]
[1766499336480,0.67,123.58,123.55,2.98599345]
[1766499336677,0.67,123.58,123.56,0.65]
[1766499336986,3.68599345,123.59,123.56,0.65]
[1766499337681,11.77768485,123.59,123.56,0.65]
[1766499338185,0.7,123.58,123.55,0.69]
[1766499338380,0.7,123.57,123.54,18.45599345]
[1766499338589,0.7,123.57,123.54,15.47]
[1766499339364,0.7,123.57,123.55,0.69]
[1766499340486,11.77841797,123.58,123.55,0.69]
[1766499342062,2.98599345,123.57,123.54,14.78]
[1766499342285,2.98599345,123.57,123.55,0.69]
[1766499343385,8.79242452,123.58,123.55,0.69]
[1766499343593,11.77841797,123.58,123.55,0.69]
[1766499344078,2.98599345,123.57,123.55,0.69]
[1766499346773,8.79242452,123.58,123.55,0.69]
[1766499347073,11.77841797,123.58,123.55,0.69]
[1766499347298,11.07841797,123.58,123.55,0.69]
[1766499347499,0.7,123.57,123.55,0.69]
[1766499349095,2.98599345,123.56,123.52,14.78]
[1766499349396,0.7,123.55,123.52,15.47]
[1766499349994,3.68599345,123.55,123.52,14.78]
[1766499350290,0.7,123.55,123.52,15.47]
[1766499350794,11.77880634,123.57,123.53,0.69]
[1766499351496,0.7,123.56,123.53,0.69]
[1766499355095,0.7,123.57,123.53,0.69]
[1766499355297,3.68599345,123.57,123.53,0.69]
[1766499355984,0.7,123.56,123.53,0.69]
[1766499357217,11.77896675,123.57,123.53,0.69]
[1766499357706,11.07896675,123.57,123.54,0.69]
[1766499358008,0.7,123.56,123.53,3.67599345]
[1766499358212,0.7,123.56,123.54,0.69]
[1766499358504,3.68599345,123.57,123.54,0.69]
[1766499358912,8.79262171,123.57,123.54,0.69]
[1766499359208,0.7,123.56,123.54,0.69]
[1766499359381,0.7,123.56,123.53,3.67599345]
[1766499359580,0.7,123.56,123.53,0.69]
[1766499359897,0.7,123.56,123.53,3.67599345]
[1766499360300,0.7,123.56,123.53,0.69]
[1766499360496,2.98599345,123.54,123.51,0.2]
[1766499360680,0.7,123.53,123.51,0.2]
[1766499361298,3.68599345,123.53,123.51,0.2]
[1766499361504,2.98599345,123.54,123.52,0.69]
[1766499361978,1.91069464,123.54,123.52,0.69]
[1766499362383,8.7944482,123.55,123.52,0.69]
[1766499362615,1.91069464,123.54,123.52,0.69]
[1766499362989,10.70514284,123.55,123.52,0.69]
[1766499363204,10.00514284,123.55,123.52,0.69]
[1766499363389,2.61069464,123.54,123.51,0.2]
[1766499363589,2.61069464,123.53,123.51,0.2]
[1766499364485,10.70606318,123.53,123.51,0.2]
[1766499365004,2.61069464,123.53,123.51,0.2]
[1766499365211,0.7,123.53,123.51,0.2]
[1766499366001,2.61069464,123.56,123.52,1.91069464]
[1766499366208,2.61069464,123.56,123.53,0.69]
[1766499366705,1.91069464,123.56,123.52,0.7]
[1766499366911,0.72,123.55,123.52,0.7]
[1766499367709,2.63069464,123.55,123.52,0.7]
[1766499368108,1.91069464,123.55,123.52,0.7]
[1766499368590,2.63069464,123.55,123.52,0.7]
[1766499369289,0.72,123.55,123.52,0.7]
[1766499369492,2.63069464,123.55,123.52,0.7]
[1766499369790,10.72461669,123.55,123.52,0.7]
[1766499369990,2.63069464,123.55,123.52,0.7]
[1766499370909,1.91069464,123.55,123.52,0.7]
[1766499371709,2.63069464,123.56,123.52,0.7]
[1766499371908,1.91069464,123.54,123.52,0.7]
[1766499373123,8.81326467,123.56,123.52,0.7]
[1766499373324,1.91069464,123.55,123.52,0.7]
[1766499374124,1.91069464,123.54,123.52,0.7]
[1766499375207,1.91069464,123.53,123.52,0.7]
[1766499375410,1.91069464,123.53,123.51,0.2]
[1766499375609,1.91069464,123.53,123.49,0.2]
[1766499375610,8.8165104,123.51,123.49,0.2]
[1766499375824,8.8165104,123.51,123.48,0.9]
[1766499375825,1.91069464,123.5,123.48,0.9]
[1766499376030,8.8165104,123.51,123.48,0.9]
[1766499376724,8.0965104,123.51,123.48,0.9]
[1766499376928,0.72,123.52,123.49,0.7]
[1766499377116,29.05417995,123.53,123.49,0.7]
[1766499377311,0.72,123.52,123.49,0.7]
[1766499377707,8.81597017,123.52,123.49,0.7]
[1766499377911,8.81520009,123.53,123.49,0.7]
[1766499379427,19.25223169,123.54,123.5,0.7]
[1766499379630,0.72,123.54,123.5,0.7]
[1766499381530,8.81473681,123.54,123.5,0.7]
[1766499381711,0.72,123.53,123.5,0.7]
[1766499382034,0.72,123.53,123.49,15.48]
[1766499382232,0.72,123.53,123.49,14.78]
[1766499383735,0.72,123.51,123.46,0.2]
[1766499383940,0.72,123.48,123.45,0.1]
[1766499384627,0.72,123.47,123.45,0.1]
[1766499384824,0.72,123.47,123.44,0.2]
[1766499385658,8.0997894,123.46,123.44,0.9]
[1766499386326,8.0997894,123.46,123.44,0.2]
[1766499387742,8.81913339,123.47,123.44,0.2]
[1766499388042,0.72,123.46,123.44,0.2]
[1766499389538,0.72,123.46,123.44,1e-08]
[1766499389720,8.10044552,123.45,123.44,1e-08]
[1766499390826,23.80001489,123.46,123.44,1e-08]
[1766499391447,23.80001489,123.46,123.41,0.1]
[1766499391448,0.72,123.45,123.41,0.1]
[1766499391840,0.72,123.43,123.41,0.1]
[1766499393121,11.34640619,123.44,123.41,0.1]
[1766499393320,12.05640619,123.44,123.41,0.1]
[1766499393929,0.71,123.43,123.41,0.1]
[1766499394331,8.81185892,123.43,123.41,0.1]
[1766499395948,8.1013752,123.44,123.41,0.79]
[1766499396843,8.7513752,123.44,123.41,0.79]
[1766499399550,8.7513752,123.44,123.41,0.1]
[1766499399848,16.95629621,123.44,123.41,0.1]
[1766499400551,0.65,123.43,123.4,0.1]
[1766499400849,0.65,123.43,123.4,1e-08]
[1766499401050,15.53,123.42,123.4,1e-08]
[1766499401353,8.10307106,123.41,123.4,1e-08]
[1766499401648,8.75254338,123.42,123.4,1e-08]